bitfinex-derivatives/quotes_SOLF0:USTF0_20250928
["timestamp","ask_amount","ask_price","bid_price","bid_amount"]
[1759026251543,3.44563296,201.79,201.74,7.89]
[1759026251739,7.93,201.8,201.74,7.89]
[1759026251740,7.93,201.81,201.74,7.89]
[1759026252039,3.4455892,201.8,201.74,7.89]
[1759026252246,3.4455892,201.79,201.74,7.89]
[1759026252542,7.93,201.81,201.76,4.4582]
[1759026252849,11.37549781,201.8,201.77,7.89]
[1759026253143,3.44549781,201.79,201.77,7.89]
[1759026253442,7.93,201.8,201.77,7.89]
[1759026253641,3.44540234,201.79,201.77,7.89]
[1759026253844,7.93,201.8,201.77,7.89]
[1759026254833,7.93,201.81,201.77,7.89]
[1759026255038,7.93,201.79,201.77,7.89]
[1759026255244,7.93,201.79,201.76,4.4582]
[1759026255437,7.93,201.79,201.77,7.89]
[1759026255640,7.93,201.79,201.76,4.4582]
[1759026255947,7.93,201.79,201.77,7.89]
[1759026256138,7.93,201.79,201.76,4.4582]
[1759026256339,7.93,201.79,201.77,7.89]
[1759026259249,7.93,201.79,201.75,4.4582]
[1759026259544,12.3869,201.82,201.76,7.89]
[1759026259747,3.44245015,201.81,201.75,4.4582]
[1759026259942,4.4569,201.82,201.75,4.4582]
[1759026260143,3.44245015,201.81,201.75,4.4582]
[1759026260341,7.93,201.81,201.76,7.89]
[1759026260741,4.4569,201.82,201.75,4.4582]
[1759026260940,11.37202183,201.81,201.76,7.89]
[1759026261139,7.93,201.8,201.76,7.89]
[1759026261336,7.93,201.8,201.75,4.4582]
[1759026261743,7.93,201.8,201.76,7.89]
[1759026261938,7.93,201.8,201.75,4.4582]
[1759026262143,7.93,201.8,201.76,7.89]
[1759026262341,7.93,201.8,201.75,4.4582]
[1759026262645,7.93,201.8,201.76,7.89]
[1759026262837,7.93,201.8,201.75,4.4582]
[1759026263036,7.93,201.81,201.76,7.58]
[1759026263242,7.94,201.81,201.75,4.4582]
[1759026263444,4.4569,201.82,201.75,4.4582]
[1759026263647,3.43403937,201.81,201.75,4.4582]
[1759026263946,4.4569,201.82,201.75,4.4582]
[1759026264148,11.37403937,201.81,201.76,7.58]
[1759026264340,7.94,201.82,201.77,7.58]
[1759026264545,7.94,201.81,201.76,4.458]
[1759026264846,7.94,201.82,201.77,7.58]
[1759026265047,1.21060775,201.83,201.76,4.458]
[1759026265248,3.43329269,201.82,201.76,4.458]
[1759026265545,7.94,201.82,201.77,7.58]
[1759026265745,1.21060775,201.83,201.76,4.458]
[1759026266139,7.94,201.82,201.77,7.58]
[1759026266538,7.94,201.83,201.76,4.458]
[1759026266749,7.94,201.83,201.77,7.58]
[1759026268951,12.3968,201.83,201.77,7.58]
[1759026269951,7.94,201.83,201.77,12.0378]
[1759026270246,7.94,201.83,201.78,7.58]
[1759026270646,7.94,201.84,201.78,7.58]
[1759026271643,7.94,201.84,201.78,12.0376]
[1759026273554,7.94,201.83,201.7,7.58]
[1759026273852,7.94,201.83,201.72,7.58]
[1759026274749,24.68254973,201.86,201.72,7.58]
[1759026274750,7.94,201.81,201.72,7.58]
[1759026275553,97.46,201.83,201.72,12.0389]
[1759026275853,97.46,201.83,201.73,7.58]
[1759026275854,11.3717629,201.82,201.73,7.58]
[1759026276057,7.94,201.82,201.73,7.58]
[1759026276647,7.94,201.82,201.76,7.58]
[1759026276844,7.94,201.82,201.71,1.8904203]
[1759026277047,7.94,201.8,201.76,4.458]
[1759026277249,12.3967,201.83,201.77,7.58]
[1759026279251,3.43262885,201.82,201.76,4.458]
[1759026279456,3.43320134,201.81,201.7,7.58]
[1759026279649,11.37320134,201.8,201.7,7.58]
[1759026279848,7.94,201.78,201.7,7.58]
[1759026280048,7.94,201.78,201.71,4.4591]
[1759026281659,7.94,201.76,201.71,4.4591]
[1759026282058,4.458,201.77,201.71,4.4591]
[1759026282059,4.458,201.77,201.71,12.0391]
[1759026282254,4.458,201.77,201.71,4.4591]
[1759026282861,7.94,201.76,201.71,4.4591]
[1759026283257,12.398,201.77,201.71,12.0391]
[1759026283649,12.398,201.77,201.71,7.58]
[1759026283859,7.94,201.74,201.67,7.58]
[1759026285253,1.8904203,201.79,201.67,7.58]
[1759026285460,7.94,201.78,201.67,9.4704203]
[1759026285959,7.94,201.78,201.7,4.4593]
[1759026286263,7.94,201.8,201.69,7.58]
[1759026286461,7.94,201.78,201.69,7.58]
[1759026287062,7.94,201.78,201.7,4.4594]
[1759026287260,7.94,201.78,201.71,7.58]
[1759026287658,7.94,201.78,201.73,4.4586]
[1759026288056,7.94,201.78,201.74,7.58]
[1759026288262,7.94,201.78,201.73,4.4586]
[1759026288657,7.94,201.78,201.74,7.58]
[1759026289164,7.94,201.78,201.74,12.0385]
[1759026289857,7.94,201.81,201.74,7.58]
[1759026290062,7.94,201.79,201.71,12.0393]
[1759026291465,7.94,201.79,201.72,4.4589]
[1759026291672,7.94,201.79,201.73,7.58]
[1759026292767,1.8904203,201.85,201.73,7.58]
[1759026292968,3.43267221,201.84,201.74,7.58]
[1759026293163,7.94,201.85,201.74,7.58]
[1759026293363,3.43039398,201.84,201.74,7.58]
[1759026293566,7.94,201.85,201.78,7.4]
[1759026293864,3.43039265,201.84,201.78,7.4]
[1759026294065,7.94,201.85,201.78,7.4]
[1759026294267,3.43029624,201.84,201.78,7.4]
[1759026294463,7.94,201.85,201.78,11.8575]
[1759026294762,7.69,201.9,201.8,7.4]
[1759026294966,3.4293865,201.89,201.8,7.4]
[1759026295168,3.42808519,201.88,201.8,7.4]
[1759026295357,7.69,201.9,201.8,7.4]
[1759026295563,3.42808519,201.89,201.81,4.457]
[1759026295758,3.42808519,201.88,201.82,7.4]
[1759026295961,7.69,201.88,201.82,22.2988886]
[1759026296166,7.69,201.91,201.83,7.4]
[1759026296364,3.42657908,201.9,201.83,7.4]
[1759026296570,7.69,201.91,201.83,7.4]
[1759026296766,3.42657862,201.9,201.83,7.4]
[1759026296966,7.69,201.91,201.83,7.4]
[1759026297268,3.42657862,201.9,201.83,7.4]
[1759026297572,7.69,201.91,201.83,7.4]
[1759026297871,3.42539724,201.9,201.83,7.4]
[1759026298072,7.69,201.91,201.83,7.4]
[1759026298370,3.42441003,201.9,201.83,7.4]
[1759026298574,7.69,201.91,201.83,7.4]
[1759026301770,7.69,201.91,201.84,7.4]
[1759026303679,12.145,201.91,201.84,7.4]
[1759026306274,7.69,201.91,201.84,7.4]
[1759026310591,127.85,201.91,201.84,7.4]
[1759026310885,127.85,201.91,201.82,14.61442381]
[1759026311083,360.78,201.92,201.81,12.607]
[1759026311084,7.51,201.89,201.81,12.607]
[1759026311289,120.16,201.9,201.81,12.607]
[1759026311490,7.51,201.89,201.81,12.607]
[1759026311687,120.16,201.9,201.81,12.607]
[1759026311887,7.51,201.89,201.81,12.607]
[1759026312291,7.51,201.88,201.81,8.15]
[1759026313088,120.18,201.87,201.78,8.15]
[1759026313293,7.51,201.86,201.78,8.15]
[1759026314694,7.51,201.86,201.79,8.15]
[1759026315592,11.9661,201.86,201.79,8.15]
[1759026318695,7.51,201.91,201.83,8.15]
[1759026319288,4.4552,201.9,201.83,8.15]
[1759026319688,7.51,201.91,201.83,8.15]
[1759026320391,7.51,201.91,201.84,8.15]
[1759026320789,7.51,201.91,201.85,4.456]
[1759026320984,7.51,201.91,201.86,8.15]
[1759026321190,7.51,201.94,201.86,8.15]
[1759026322794,7.51,201.94,201.86,12.6058]
[1759026322987,7.51,201.94,201.81,69.3325]
[1759026322988,76.7987,201.94,201.81,8.15]
[1759026323386,197.0987,201.94,201.81,8.15]
[1759026323593,7.94,201.91,201.83,7.87]
[1759026324298,12.395,201.91,201.83,12.3264]
[1759026325197,26.64,201.94,201.83,7.87]
[1759026325198,7.94,201.89,201.83,7.87]
[1759026326593,7.94,201.89,201.83,9.07895276]
[1759026328996,12.3947,201.92,201.84,7.87]
[1759026330697,12.3947,201.92,201.84,12.3262]
[1759026331504,12.3947,201.92,201.85,7.87]
[1759026332904,12.3947,201.92,201.79,150.6994]
[1759026332905,7.94,201.9,201.81,1.20895276]
[1759026333104,7.94,201.9,201.82,7.87]
[1759026333600,4.4555,201.88,201.82,7.87]
[1759026334804,1.20895276,201.89,201.78,15.10833459]
[1759026335098,7.94,201.86,201.79,7.87]
[1759026338604,4.4566,201.84,201.79,7.87]
[1759026338807,12.3966,201.84,201.78,15.02441285]
[1759026339004,7.94,201.84,201.77,4.4578]
[1759026339213,7.94,201.84,201.78,9.07895276]
[1759026341318,7.94,201.84,201.78,24.2690601]
[1759026341617,12.3966,201.84,201.78,24.2690601]
[1759026352826,12.3968,201.83,201.78,23.06010734]
[1759026353028,7.94,201.82,201.78,23.06010734]
[1759026353228,4.4568,201.83,201.78,23.06010734]
[1759026353423,7.44,201.82,201.79,7.88]
[1759026354522,7.44,201.82,201.78,7.88]
[1759026354726,7.44,201.82,201.78,15.07569491]
[1759026354927,7.44,201.82,201.79,7.88]
[1759026355629,7.44,201.82,201.77,5.66665276]
[1759026356030,7.44,201.82,201.78,7.88]
[1759026356231,7.44,201.82,201.77,5.66665276]
[1759026356422,7.44,201.82,201.78,7.88]
[1759026357526,7.44,201.82,201.77,5.66665276]
[1759026358028,7.44,201.82,201.78,7.88]
[1759026358729,7.44,201.82,201.77,16.22447092]
[1759026359127,7.44,201.82,201.78,7.88]
[1759026359527,7.44,201.82,201.77,16.22447092]
[1759026359723,7.44,201.82,201.78,7.88]
[1759026359931,7.44,201.82,201.77,16.22447092]
[1759026360525,7.44,201.82,201.78,7.88]
[1759026360829,7.44,201.82,201.77,16.22447092]
[1759026361025,7.44,201.82,201.78,7.88]
[1759026361227,7.44,201.82,201.77,16.22447092]
[1759026361621,7.44,201.82,201.78,7.88]
[1759026362131,7.44,201.82,201.77,16.22447092]
[1759026362530,7.44,201.82,201.78,7.88]
[1759026362735,7.44,201.82,201.77,16.22447092]
[1759026362939,7.44,201.82,201.78,7.88]
[1759026363127,7.44,201.82,201.77,16.22447092]
[1759026363332,7.44,201.82,201.78,12.3376]
[1759026363636,7.44,201.82,201.79,7.88]
[1759026365138,7.44,201.82,201.78,4.4576]
[1759026365338,7.44,201.82,201.79,7.88]
[1759026366235,7.44,201.85,201.79,7.88]
[1759026366539,7.44,201.85,201.8,7.88]
[1759026367437,7.44,201.85,201.79,5.66635276]
[1759026367639,7.44,201.85,201.8,7.88]
[1759026367828,7.44,201.85,201.79,5.66635276]
[1759026368034,7.44,201.85,201.8,7.88]
[1759026368241,7.44,201.85,201.79,5.66635276]
[1759026368928,7.44,201.85,201.8,7.88]
[1759026369334,7.44,201.85,201.79,5.66635276]
[1759026369532,7.44,201.85,201.8,7.99]
[1759026370137,7.44,201.85,201.79,5.66635276]
[1759026370738,7.44,201.85,201.8,7.99]
[1759026370940,7.44,201.85,201.79,5.66635276]
[1759026371241,7.44,201.85,201.81,7.99]
[1759026371439,7.44,201.85,201.8,4.4571]
[1759026371640,4.4559,201.87,201.81,9.19895276]
[1759026371834,7.41,201.88,201.82,7.99]
[1759026372437,7.41,201.88,201.83,1.20895276]
[1759026372636,69.2895,201.94,201.83,1.20895276]
[1759026372637,8.61895276,201.93,201.84,7.99]
[1759026372837,3.41857397,201.92,201.85,1.20895276]
[1759026373037,10.82857397,201.91,201.85,1.20895276]
[1759026373232,7.41,201.91,201.85,1.20895276]
[1759026373638,11.865,201.91,201.85,1.20895276]
[1759026374938,4.455,201.91,201.85,1.20895276]
[1759026375132,11.865,201.91,201.85,9.19895276]
[1759026379042,11.865,201.91,201.85,7.99]
[1759026379836,8.61895276,201.91,201.82,4.4567]
[1759026380044,7.41,201.89,201.82,7.99]
[1759026380435,11.8654,201.89,201.82,12.4467]
[1759026380742,11.8654,201.89,201.82,7.99]
[1759026381542,11.8654,201.89,201.83,4.4565]
[1759026382334,7.41,201.89,201.83,4.4565]
[1759026382539,7.41,201.89,201.84,7.99]
[1759026382738,7.41,201.89,201.83,1.20895276]
[1759026382933,8.61895276,201.97,201.89,7.99]
[1759026383234,7.41,201.95,201.89,9.19895276]
[1759026383433,7.41,201.95,201.89,7.99]
[1759026383633,7.41,201.95,201.88,1.20895276]
[1759026384343,7.41,201.95,201.89,8.01]
[1759026385941,11.8642,201.95,201.89,8.01]
[1759026386735,11.8642,201.95,201.82,69.3274]
[1759026386736,7.85,201.9,201.82,13.52348699]
[1759026386939,112.4830734,201.99,201.82,9.89796653]
[1759026387142,7.85,201.97,201.85,8.01]
[1759026387341,12.3035,201.97,201.86,12.4658]
[1759026387539,7.85,201.96,201.87,8.01]
[1759026388646,7.85,201.96,201.87,12.4655]
[1759026389448,7.85,201.96,201.88,8.01]
[1759026389940,12.304,201.96,201.88,8.01]
[1759026390136,69.2808,201.97,201.85,12.4661]
[1759026390343,71.17326653,201.95,201.85,8.01]
[1759026390543,7.85,201.94,201.85,8.01]
[1759026390937,7.85,201.9,201.85,8.01]
[1759026391142,4.455,201.91,201.85,8.01]
[1759026391345,69.29,201.94,201.82,4.4568]
[1759026391549,7.85,201.93,201.82,12.4668]
[1759026391751,7.85,201.93,201.83,8.01]
[1759026392649,4.4553,201.9,201.83,8.01]
[1759026393047,4.4553,201.9,201.83,12.4665]
[1759026394748,7.85,201.89,201.83,12.4665]
[1759026396152,7.85,201.89,201.79,8.01]
[1759026397150,4.4566,201.84,201.77,92.62361543]
[1759026397357,4.4566,201.84,201.78,8.01]
[1759026397552,69.316,201.86,201.77,15.01551816]
[1759026397750,7.85,201.85,201.75,8.46603808]
[1759026397949,9.73796653,201.85,201.75,8.46603808]
[1759026398557,4.457,201.82,201.75,8.46603808]
[1759026398760,12.307,201.82,201.75,8.46603808]
[1759026401163,12.307,201.82,201.75,23.43994796]
[1759026408160,12.307,201.82,201.75,15.42994796]
[1759026408466,12.307,201.82,201.76,8.01]
[1759026410163,12.3064,201.85,201.76,8.01]
[1759026411564,12.3064,201.85,201.76,4.458]
[1759026411765,4.4566,201.84,201.77,8.01]
[1759026415668,7.65,201.82,201.77,8.01]
[1759026415870,7.65,201.85,201.77,8.01]
[1759026416672,7.65,201.81,201.77,8.01]
[1759026416971,7.65,201.81,201.76,7.51]
[1759026417164,7.65,201.81,201.75,15.42994796]
[1759026417365,7.65,201.81,201.76,7.51]
[1759026417672,7.65,201.8,201.75,15.42994796]
[1759026418472,7.65,201.8,201.76,7.51]
[1759026419366,7.65,201.8,201.75,15.42994796]
[1759026419766,7.65,201.8,201.76,7.51]
[1759026420168,7.65,201.8,201.75,15.42994796]
[1759026421069,7.65,201.8,201.76,7.51]
[1759026421267,12.1074,201.8,201.75,15.42994796]
[1759026421468,71.21896653,201.82,201.75,14.97390988]
[1759026421671,71.21896653,201.82,201.72,7.51]
[1759026421878,7.65,201.81,201.72,7.51]
[1759026422071,4.4582,201.76,201.72,7.51]
[1759026422278,7.65,201.75,201.69,368.07]
[1759026423579,12.1086,201.75,201.69,382.58159124]
[1759026426078,12.1086,201.75,201.69,22.02159124]
[1759026426476,69.3483,201.77,201.69,14.51159124]
[1759026426682,7.65,201.74,201.64,7.51]
[1759026427379,12.1097,201.7,201.64,7.51]
[1759026428779,12.1097,201.7,201.64,22.61549186]
[1759026429577,7.65,201.7,201.64,22.61549186]
[1759026434378,7.5,201.74,201.65,7.89]
[1759026435179,7.5,201.74,201.67,7.89]
[1759026435781,7.5,201.74,201.68,4.4599]
[1759026435974,7.5,201.74,201.69,7.89]
[1759026436379,7.5,201.74,201.68,4.4599]
[1759026436979,7.5,201.74,201.68,7.89]
[1759026437176,1.88796653,201.75,201.64,22.74050874]
[1759026437377,7.5,201.74,201.64,7.89]
[1759026437578,4.4591,201.72,201.64,7.89]
[1759026437778,7.5,201.71,201.64,7.89]
[1759026439686,4.4597,201.7,201.64,7.89]
[1759026441184,4.4597,201.7,201.64,22.87801323]
[1759026446088,4.4597,201.7,201.65,7.64]
[1759026446288,4.4597,201.7,201.66,7.64]
[1759026446479,4.4597,201.7,201.65,7.64]
[1759026446684,4.4597,201.7,201.64,7.64]
[1759026447383,4.4597,201.7,201.63,4.4609]
[1759026447384,4.4591,201.72,201.65,7.64]
[1759026448687,4.4591,201.72,201.66,7.64]
[1759026448986,1.21117524,201.73,201.66,7.64]
[1759026449284,4.4587,201.74,201.66,7.64]
[1759026450584,4.4587,201.74,201.68,4.4598]
[1759026450784,4.4587,201.74,201.69,7.64]
[1759026451586,4.4587,201.74,201.68,4.4598]
[1759026451787,12.2687,201.74,201.68,7.64]
[1759026451987,5.67017524,201.73,201.68,7.64]
[1759026453195,7.81,201.72,201.68,7.64]
[1759026453390,5.67017524,201.73,201.68,7.64]
[1759026453690,7.81,201.72,201.68,7.64]
[1759026453884,5.67017524,201.73,201.68,7.64]
[1759026454295,7.81,201.72,201.68,7.64]
[1759026454790,5.67017524,201.73,201.68,7.64]
[1759026455089,7.81,201.72,201.68,7.64]
[1759026455289,5.67017524,201.73,201.68,7.64]
[1759026455487,7.81,201.72,201.68,7.64]
[1759026456094,5.67017524,201.73,201.68,7.64]
[1759026456291,1.21117524,201.73,201.63,69.15306647]
[1759026456491,7.81,201.78,201.69,7.64]
[1759026456790,12.2683,201.76,201.69,7.64]
[1759026456994,1.21117524,201.75,201.69,7.64]
[1759026457190,1.21117524,201.75,201.66,35.73147524]
[1759026457395,7.81,201.74,201.67,12.1]
[1759026457597,7.81,201.74,201.67,7.64]
[1759026458603,7.81,201.74,201.69,4.4596]
[1759026458891,7.81,201.74,201.7,7.64]
[1759026459098,7.81,201.74,201.69,4.4596]
[1759026459291,7.81,201.74,201.7,7.64]
[1759026459494,1.21117524,201.75,201.69,4.4596]
[1759026459693,13.47927524,201.77,201.7,7.64]
[1759026459896,9.02117524,201.77,201.7,7.64]
[1759026461094,7.81,201.77,201.71,4.4592]
[1759026464601,12.2681,201.77,201.71,4.4592]
[1759026466302,69.3309,201.82,201.7,7.64]
[1759026466303,7.81,201.75,201.7,7.64]
[1759026466596,7.81,201.75,201.69,4.4596]
[1759026466802,7.81,201.73,201.67,12.1001]
[1759026473612,1.21117524,201.72,201.67,12.1001]
[1759026473912,7.45,201.71,201.67,12.1001]
[1759026474705,1.21117524,201.72,201.67,12.1001]
[1759026474904,7.45,201.71,201.67,12.1001]
[1759026475308,1.21117524,201.72,201.67,12.1001]
[1759026475604,7.45,201.71,201.67,12.1001]
[1759026476209,7.45,201.71,201.68,7.68]
[1759026476413,7.45,201.71,201.67,4.4601]
[1759026477318,7.45,201.71,201.68,7.68]
[1759026480116,7.45,201.71,201.67,4.4601]
[1759026480319,7.45,201.71,201.68,7.68]
[1759026480720,5.67037524,201.72,201.68,7.68]
[1759026481112,7.45,201.71,201.68,7.68]
[1759026481315,5.67107524,201.69,201.64,5.51096477]
[1759026481511,13.12107524,201.69,201.63,22.20189123]
[1759026481817,8.66117524,201.69,201.63,22.20189123]
[1759026482009,7.45,201.69,201.63,14.52189123]
[1759026482216,7.45,201.69,201.63,7.68]
[1759026482923,7.45,201.69,201.63,27.77527543]
[1759026483117,7.45,201.69,201.63,7.68]
[1759026483516,7.45,201.69,201.63,13.19096477]
[1759026484215,7.45,201.69,201.63,17.65186477]
[1759026487426,7.45,201.69,201.63,32.38189958]
[1759026488326,7.45,201.69,201.63,22.41003481]
[1759026488327,11.9099,201.69,201.63,22.41003481]
[1759026492823,7.45,201.69,201.63,32.38189958]
[1759026493825,11.9097,201.69,201.63,26.87093481]
[1759026499425,7.94,201.66,201.59,13.62096477]
[1759026499730,1.21117524,201.64,201.6,8.11]
[1759026500028,1.21117524,201.64,201.55,121.55117524]
[1759026500029,7.94,201.61,201.58,8.11]
[1759026500223,7.94,201.61,201.56,5.51096477]
[1759026500429,1.21117524,201.6,201.54,8.11]
[1759026500831,5.67307524,201.6,201.54,8.11]
[1759026502026,7.94,201.59,201.54,8.11]
[1759026502333,5.67307524,201.6,201.54,8.11]
[1759026502530,7.94,201.59,201.54,8.11]
[1759026502732,5.67307524,201.6,201.52,9.97426477]
[1759026502932,7.94,201.59,201.53,8.11]
[1759026506030,12.4021,201.59,201.53,8.11]
[1759026506336,1.21117524,201.58,201.53,8.11]
[1759026507230,8.07,201.57,201.53,8.11]
[1759026507631,5.67347524,201.58,201.53,8.11]
[1759026508440,8.07,201.57,201.53,8.11]
[1759026508636,4.4623,201.58,201.53,8.11]
[1759026509236,8.07,201.57,201.53,8.11]
[1759026509437,4.4623,201.58,201.53,8.11]
[1759026509740,8.07,201.57,201.53,8.11]
[1759026510438,4.4623,201.58,201.53,8.11]
[1759026510835,8.07,201.57,201.53,8.11]
[1759026511034,4.4623,201.58,201.53,8.11]
[1759026511235,8.07,201.57,201.53,8.11]
[1759026511435,4.4623,201.58,201.53,8.11]
[1759026512234,8.07,201.57,201.53,8.11]
[1759026512434,4.4623,201.58,201.53,8.11]
[1759026512637,8.07,201.57,201.53,8.11]
[1759026512837,4.4623,201.58,201.53,8.11]
[1759026513034,8.07,201.57,201.53,8.11]
[1759026513341,8.07,201.57,201.54,7.58]
[1759026514542,4.4618,201.6,201.53,7.58]
[1759026514844,8.07,201.59,201.53,7.58]
[1759026518646,12.5321,201.59,201.53,7.58]
[1759026521046,8.07,201.57,201.53,7.58]
[1759026521440,4.4623,201.58,201.53,7.58]
[1759026522045,8.07,201.57,201.53,7.58]
[1759026522549,4.4623,201.58,201.53,7.58]
[1759026522749,4.4623,201.58,201.52,135.01620209]
[1759026522942,4.4623,201.58,201.53,7.58]
[1759026523145,4.4623,201.58,201.52,135.01620209]
[1759026523745,206.90437109,201.68,201.54,7.58]
[1759026523950,8.07,201.65,201.54,7.58]
[1759026524549,8.07,201.65,201.56,7.58]
[1759026525151,12.5307,201.65,201.56,7.58]
[1759026525343,12.5307,201.65,201.57,102.14]
[1759026525649,12.5307,201.65,201.58,7.58]
[1759026526649,12.5307,201.65,201.58,12.042]
[1759026534546,12.5307,201.65,201.58,4.462]
[1759026534852,12.5307,201.65,201.59,7.6]
[1759026547156,4.461,201.64,201.59,7.6]
[1759026547356,4.461,201.64,201.58,12.062]
[1759026547558,7.51,201.63,201.58,12.062]
[1759026547757,4.461,201.64,201.58,4.462]
[1759026547958,4.461,201.64,201.59,7.6]
[1759026548165,11.9712,201.63,201.57,7.6]
[1759026548358,7.51,201.63,201.57,7.6]
[1759026549468,7.51,201.63,201.57,12.0622]
[1759026551062,12.3904,201.66,201.59,7.76]
[1759026552573,12.3904,201.66,201.59,12.2218]
[1759026555366,7.93,201.66,201.59,7.76]
[1759026556571,139.4215877,201.68,201.57,9.97326477]
[1759026556771,7.93,201.67,201.58,7.76]
[1759026557765,12.3911,201.63,201.57,9.97326477]
[1759026557965,12.3911,201.63,201.58,7.76]
[1759026558163,7.93,201.63,201.58,4.462]
[1759026558471,7.93,201.66,201.59,7.76]
[1759026558872,12.3905,201.66,201.59,12.2218]
[1759026559065,12.3905,201.66,201.6,7.76]
[1759026559662,4.4608,201.65,201.59,4.4618]
[1759026559969,4.4608,201.65,201.57,125.87096477]
[1759026559970,7.93,201.7,201.61,7.76]
[1759026560268,4.4603,201.67,201.61,7.76]
[1759026560466,7.93,201.66,201.59,7.76]
[1759026561572,12.3905,201.66,201.59,7.76]
[1759026562570,12.3905,201.66,201.59,12.2218]
[1759026563173,12.3905,201.66,201.59,17.73276477]
[1759026563675,12.3905,201.66,201.6,7.73]
[1759026565171,7.93,201.66,201.6,7.73]
[1759026565376,7.46020117,201.78,201.63,7.73]
[1759026565571,1.89501661,201.78,201.66,5.51096477]
[1759026565871,1.89501661,201.78,201.67,7.73]
[1759026566071,1.89501661,201.78,201.67,13.24096477]
[1759026566374,4.4579,201.78,201.69,4.4595]
[1759026566576,69.3225,201.84,201.68,7.73]
[1759026566777,1.89501661,201.82,201.68,7.73]
[1759026567477,7.6,201.79,201.71,4.4593]
[1759026567676,7.6,201.79,201.72,7.73]
[1759026569778,7.6,201.79,201.72,22.85476858]
[1759026574577,7.6,201.79,201.73,8.94014642]
[1759026575283,7.6,201.79,201.76,7.73]
[1759026575682,7.6,201.79,201.75,1.21014642]
[1759026576679,7.6,201.79,201.76,7.73]
[1759026577483,4.4573,201.81,201.76,7.73]
[1759026577777,7.6,201.8,201.76,7.73]
[1759026577981,4.4573,201.81,201.76,7.73]
[1759026578381,7.6,201.8,201.76,7.73]
[1759026578584,4.4573,201.81,201.76,7.73]
[1759026579182,7.6,201.8,201.76,7.73]
[1759026579379,4.4573,201.81,201.73,1.21014642]
[1759026579584,4.4573,201.81,201.76,7.73]
[1759026579781,7.6,201.8,201.76,7.73]
[1759026580978,7.6,201.8,201.75,1.21014642]
[1759026581182,7.6,201.8,201.76,7.73]
[1759026582178,8.81014642,201.86,201.78,7.73]
[1759026583582,13.26624642,201.86,201.78,7.73]
[1759026592290,7.6,201.84,201.78,7.73]
[1759026592488,7.6,201.84,201.77,1.21014642]
[1759026592489,8.81014642,201.84,201.75,8.94014642]
[1759026593691,4.4568,201.83,201.75,8.94014642]
[1759026596696,4.4568,201.83,201.75,5.66844642]
[1759026596892,4.4568,201.83,201.76,7.56]
[1759026597686,7.58,201.82,201.76,7.56]